[Event "USA-ch Women 2024"]
[Site "Saint Louis"]
[Date "2024.10.19"]
[Round "8.1"]
[White "Lee, Alice"]
[Black "Krush, Irina"]
[Result "1-0"]
[ECO "E94"]
[WhiteElo "2395"]
[BlackElo "2388"]
[Annotator "TA"]
[PlyCount "81"]
[EventDate "2024.10.09"]
[EventType "tourn"]
[EventCountry "USA"]
[SourceTitle "playchess.com"]
[Source "ChessBase"]
[SourceQuality "1"]
[TimeControl "40/5400+30:1800+30"]

{[%evp 14,81,35,32,49,39,72,61,92,55,96,69,68,61,66,66,83,78,79,61,63,66,68,62,58,39,35,15,3,0,27,0,0,0,0,0,10,0,0,0,0,10,21,0,10,14,70,77,66,68,68,69,64,70,54,13,50,71,1760,1714,2437,2343,29991,29992,29992,29993,29993,29994,29995,29996]} 1. d4 {[%emt 0:00:14]} Nf6 {[%emt 0:00:12]} 2. c4 {[%emt 0:00:10]} g6 {[%emt 0:00:10]} 3. Nc3 {[%emt 0:00:17]} Bg7 {[%emt 0:00:10]} 4. e4 {[%emt 0:01:13]} d6 {[%emt 0:00:18]} 5. Be2 {[%emt 0:00:25]} O-O {[%emt 0:00:19]} 6. Be3 {[%emt 0:01:02]} Nbd7 {[%emt 0:01:05]} 7. Nf3 {[%emt 0:07:00]} e5 {[%emt 0:00:28]} 8. O-O {[%emt 0:01:09]} Qe7 {[%emt 0:00:13]} 9. Re1 {[%emt 0:05:47]} c6 {[%emt 0:10:58]} 10. d5 {[%emt 0:01:30]} c5 {[%emt 0:02:44] White is slightly better.} 11. Nd2 {[%emt 0:02:14] White is more active.} Kh8 {[%emt 0:00:56]} 12. a3 {[%emt 0:05:53]} Ng8 {[%emt 0:01:09]} 13. b4 {[%emt 0:03:25]} f5 {[%emt 0:06:25] White must now prevent ...f4.} 14. f3 {[%emt 0:02:16]} f4 {[%emt 0:03:52]} 15. Bf2 {[%emt 0:00:07]} b6 {[%emt 0:07:15]} 16. bxc5 {[%emt 0:02:00]} Nxc5 {[%emt 0:02:09]} 17. a4 {[%emt 0:02:08]} Bd7 {[%emt 0:08:45]} 18. a5 {[%emt 0:01:39]} Bf6 {[%emt 0:02:23]} 19. axb6 {[%emt 0:07:37]} (19. Nb3 {keeps more tension.} Bh4 20. Bxh4 Qxh4 21. Nb5) 19... axb6 {[%emt 0:00:11]} 20. Rxa8 {[%emt 0:01:03]} Rxa8 {[%emt 0:00:03]} 21. Qb1 {[%emt 0:00:20]} Ra6 {[%emt 0:09:13]} 22. Qb2 {[%emt 0:05:41]} Nh6 {[%emt 0:07:57]} 23. Ra1 {[%emt 0:02:51]} Rxa1+ {[%emt 0:00:23]} 24. Qxa1 {[%emt 0:00:03]} Nf7 {[%emt 0:00:42]} 25. Qa7 {[%emt 0:01:45]} Bh4 $1 {[%emt 0:05:17] Strongly threatening ...Bxf2+.} 26. g3 $36 {[%emt 0:05:32][%mdl 2048] White is more active.} Bg5 {[%emt 0:00:04] ...fxg3 is the strong threat.} 27. Nf1 {[%emt 0:01:21]} Qd8 {[%emt 0:01:29]} 28. Nb5 {[%emt 0:02:10]} h5 {[%emt 0:12:36][%cal Bh7h5,Bh5h4][%mdl 32]} 29. Nc7 {[%emt 0:03:59]} fxg3 {[%emt 0:02:01]} (29... Be7 $1 $11) 30. hxg3 $14 {[%emt 0:00:10]} h4 {[%emt 0:01:23]} 31. Qxb6 {[%emt 0:02:56]} Na4 {[%emt 0:01:59]} 32. Qa7 {[%emt 0:00:54] Hoping for Ne6.} Nc3 {[%emt 0:03:20]} 33. Bd3 {[%emt 0:00:14] Ne6 would now be deadly.} Nd1 {[%emt 0:01:25]} 34. Bb6 {[%emt 0:16:01]} (34. Ne6 {simplifies} Bxe6 35. dxe6 Nxf2 36. Qxf2 hxg3 37. Qxg3 Nh6 38. c5) 34... Qf6 {[%emt 0:00:56] Against Ne6} 35. Ne6 $1 {[%emt 0:00:27]} Qxf3 $2 {[%emt 0:03:49][%mdl 8192] This costs Black the game.} (35... Bxe6 $16 36. dxe6 Qxe6) 36. Qxd7 $18 {[%emt 0:00:16] aiming for Qe8+.} Bh6 {[%emt 0:04:52] [#]} 37. Be2 $1 {[%emt 0:01:37][%mdl 512]} Qxe2 {[%emt 0:00:27] [#]} (37... Qf6 38. Bxd1) 38. Qe8+ $1 {[%emt 0:00:05] White mates.} Kh7 {[%emt 0:00:19]} 39. Qxf7+ {[%emt 0:00:06]} Kh8 {[%emt 0:00:06]} 40. Qxg6 {[%emt 0:02:53]} Be3+ {[%emt 0:01:36]} 41. Bxe3 {[%emt 0:30:11] Weighted Error Value: White=0.09 (flawless) /Black=0.25 (precise) .  Loses game:     	---       	Black=1      Mistake:       	---       	Black=1      Inaccurate:     	White=3     	Black=6      OK:         	White=8     	Black=9      Best:        	White=2     	Black=1      Strong:       	White=1     	Black=1} 1-0

[Event "USA-ch Women 2024"]
[Site "Saint Louis"]
[Date "2024.10.19"]
[Round "8.2"]
[White "Lee, Megan"]
[Black "Zatonskih, Anna"]
[Result "1/2-1/2"]
[ECO "C11"]
[WhiteElo "2253"]
[BlackElo "2312"]
[Annotator "RC"]
[PlyCount "260"]
[EventDate "2024.10.09"]
[EventType "tourn"]
[EventCountry "USA"]
[SourceTitle "playchess.com"]
[Source "ChessBase"]
[SourceQuality "1"]
[TimeControl "40/5400+30:1800+30"]

1. e4 {[%emt 0:00:02]} e6 {[%emt 0:00:10]} 2. d4 {[%emt 0:00:06]} d5 {[%emt 0:00:04]} 3. Nc3 {[%emt 0:00:04]} Nf6 {[%emt 0:00:20]} 4. e5 {[%emt 0:00:05]} Nfd7 {[%emt 0:00:08]} 5. f4 {[%emt 0:00:05]} c5 {[%emt 0:00:15]} 6. Nf3 {[%emt 0:00:04]} Nc6 {[%emt 0:00:18]} 7. Be3 {[%emt 0:00:11]} a6 {[%emt 0:00:44]} 8. Ne2 {[%emt 0:00:15]} Qb6 {[%emt 0:10:42]} 9. Qc1 {[%emt 0:00:18]} cxd4 {[%emt 0:04:21]} 10. Nexd4 {[%emt 0:00:27]} Nxd4 {[%emt 0:02:24]} 11. Nxd4 {[%emt 0:02:06]} Nc5 {[%emt 0:10:54]} 12. c3 {[%emt 0:05:35]} Qc7 {[%emt 0:04:28]} 13. Be2 {[%emt 0:04:26]} Be7 {[%emt 0:01:15]} 14. Qc2 {[%emt 0:06:58]} Bd7 {[%emt 0:05:06]} 15. a4 {[%emt 0:04:56]} O-O {[%emt 0:07:47]} 16. Nf3 {[%emt 0:07:44]} f6 {[%emt 0:13:55]} 17. exf6 {[%emt 0:11:53]} Bxf6 {[%emt 0:04:47]} 18. h4 {[%emt 0:01:41]} Be8 {[%emt 0:09:11]} 19. h5 {[%emt 0:05:48]} Rc8 {[%emt 0:00:17]} 20. Rh3 {[%emt 0:05:43]} Ne4 {[%emt 0:05:54]} 21. Bd3 {[%emt 0:07:03]} e5 {[%emt 0:01:36]} 22. fxe5 {[%emt 0:14:39]} Bxe5 {[%emt 0:00:28]} 23. O-O-O {[%emt 0:02:49]} Nxc3 {[%emt 0:12:05]} 24. Bxh7+ {[%emt 0:12:43]} Kh8 {[%emt 0:00:02]} 25. h6 {[%emt 0:00:11]} g6 {[%emt 0:03:22]} 26. Bxg6 {[%emt 0:02:36]} Nxd1 {[%emt 0:02:02]} 27. Kxd1 {[%emt 0:01:55]} Qxc2+ {[%emt 0:00:46]} 28. Bxc2 {[%emt 0:00:02]} Bxb2 {[%emt 0:00:14]} 29. g4 {[%emt 0:02:42]} Bd7 {[%emt 0:00:26]} 30. Nh2 {[%emt 0:00:44]} Be5 {[%emt 0:00:49]} 31. Rh5 {[%emt 0:01:24]} d4 {[%emt 0:00:35]} 32. Rxe5 {[%emt 0:00:35]} dxe3 {[%emt 0:00:01]} 33. Re7 {[%emt 0:00:33]} e2+ {[%emt 0:00:19]} 34. Rxe2 {[%emt 0:00:19]} Rf4 {[%emt 0:00:30]} 35. Re7 {[%emt 0:00:36]} Bxg4+ {[%emt 0:00:19]} 36. Nxg4 {[%emt 0:00:31]} Rxg4 {[%emt 0:00:17]} 37. Bf5 {[%emt 0:00:17]} Rd8+ {[%emt 0:00:31]} 38. Kc2 {[%emt 0:00:42]} Rg5 {[%emt 0:00:15]} 39. Be4 {[%emt 0:00:27]} b5 {[%emt 0:00:35]} 40. Ra7 {[%emt 0:00:34]} Rg4 {[%emt 0:00:34]} 41. Bf5 {[%emt 0:01:06]} Rg5 {[%emt 0:12:56]} 42. Be4 {[%emt 0:00:21]} Re8 {[%emt 0:03:09]} 43. Bd3 {[%emt 0:01:15]} Rg2+ {[%emt 0:04:10]} 44. Kb3 {[%emt 0:03:28]} Rd8 {[%emt 0:01:42]} 45. Bf5 {[%emt 0:01:49]} bxa4+ {[%emt 0:09:26]} 46. Kxa4 {[%emt 0:00:13]} Rd4+ {[%emt 0:00:59]} 47. Kb3 {[%emt 0:00:35]} Rg3+ {[%emt 0:00:18]} 48. Kc2 {[%emt 0:01:22]} Rf4 {[%emt 0:02:24]} 49. Bd3 {[%emt 0:01:58]} Rf2+ {[%emt 0:00:34]} 50. Kc3 {[%emt 0:00:01]} Rf8 {[%emt 0:00:09]} 51. Rd7 {[%emt 0:01:58]} Rb8 {[%emt 0:00:33]} 52. Kc2 {[%emt 0:03:35]} a5 {[%emt 0:00:06]} 53. Rd4 {[%emt 0:05:32]} Rg2+ {[%emt 0:00:06]} 54. Kc3 {[%emt 0:00:23]} Rg3 {[%emt 0:00:10]} 55. Kc2 {[%emt 0:01:23]} Rg5 {[%emt 0:00:29]} 56. Kd2 {[%emt 0:01:48]} Rh5 {[%emt 0:00:57]} 57. h7 {[%emt 0:00:38]} Rc5 {[%emt 0:00:20]} 58. Ke3 {[%emt 0:00:50]} Rcc8 {[%emt 0:00:22]} 59. Ra4 {[%emt 0:00:53]} Rb3 {[%emt 0:01:38]} 60. Rd4 {[%emt 0:04:10]} Rb4 {[%emt 0:00:21]} 61. Rd5 {[%emt 0:01:11]} a4 {[%emt 0:00:22]} 62. Ra5 {[%emt 0:00:04]} Re8+ {[%emt 0:00:21]} 63. Kd2 {[%emt 0:00:22]} Rd8 {[%emt 0:00:35]} 64. Kc2 {[%emt 0:01:04]} Rc8+ {[%emt 0:00:02]} 65. Kd2 {[%emt 0:00:20]} Rb2+ {[%emt 0:00:48]} 66. Kd1 {[%emt 0:00:50]} Ra2 {[%emt 0:00:43]} 67. Bf5 {[%emt 0:01:02]} Rf8 {[%emt 0:00:42]} 68. Kc1 {[%emt 0:00:22]} a3 {[%emt 0:00:42]} 69. Kb1 {[%emt 0:02:47]} Rf2 {[%emt 0:00:30]} 70. Bd3 {[%emt 0:00:14]} Rb8+ {[%emt 0:00:26]} 71. Ka1 {[%emt 0:00:18]} Rf3 {[%emt 0:00:31]} 72. Be4 {[%emt 0:01:41]} Re3 {[%emt 0:00:24]} 73. Bf5 {[%emt 0:01:54]} Rc3 {[%emt 0:00:46]} 74. Be4 {[%emt 0:00:41]} Rg3 {[%emt 0:00:24]} 75. Ra8 {[%emt 0:01:18]} Rxa8 {[%emt 0:00:16]} 76. Bxa8 {[%emt 0:00:01]} Kxh7 {[%emt 0:00:29]} 77. Ka2 {[%emt 0:00:14]} Kg6 {[%emt 0:00:15]} 78. Bd5 {[%emt 0:00:10]} Kf5 {[%emt 0:00:26]} 79. Bb3 {[%emt 0:00:03]} Ke5 {[%emt 0:00:08]} 80. Kxa3 {[%emt 0:00:04]} Kd4 {[%emt 0:00:11]} 81. Kb4 {[%emt 0:01:58]} Rc3 {[%emt 0:00:17]} 82. Ba2 {[%emt 0:00:51]} Rc8 {[%emt 0:00:20]} 83. Bf7 {[%emt 0:00:34]} Rb8+ {[%emt 0:00:19]} 84. Ka5 {[%emt 0:00:30]} Kc5 {[%emt 0:01:15]} 85. Ka4 {[%emt 0:00:14]} Rb4+ {[%emt 0:00:27]} 86. Ka3 {[%emt 0:00:05]} Re4 {[%emt 0:00:24]} 87. Kb3 {[%emt 0:00:14]} Re3+ {[%emt 0:00:15]} 88. Kc2 {[%emt 0:00:37]} Kd4 {[%emt 0:00:06]} 89. Bg6 {[%emt 0:00:14]} Rc3+ {[%emt 0:00:20]} 90. Kb2 {[%emt 0:00:19]} Kc4 {[%emt 0:00:10]} 91. Bf7+ {[%emt 0:00:47]} Kb4 {[%emt 0:00:02]} 92. Bg6 {[%emt 0:00:26]} Rg3 {[%emt 0:00:20]} 93. Be4 {[%emt 0:00:23]} Re3 {[%emt 0:00:03]} 94. Bg6 {[%emt 0:00:26]} Re2+ {[%emt 0:01:51]} 95. Kc1 {[%emt 0:00:05]} Kc3 {[%emt 0:00:13]} 96. Kd1 {[%emt 0:00:04]} Ra2 {[%emt 0:00:22]} 97. Ke1 {[%emt 0:00:31]} Rd2 {[%emt 0:00:18]} 98. Bf5 {[%emt 0:00:11]} Rd5 {[%emt 0:00:30]} 99. Bg6 {[%emt 0:00:44]} Rd6 {[%emt 0:00:24]} 100. Bf5 {[%emt 0:00:22]} Rf6 {[%emt 0:00:36]} 101. Bh7 {[%emt 0:00:58]} Rf7 {[%emt 0:00:38]} 102. Bg6 {[%emt 0:00:09]} Rg7 {[%emt 0:00:24]} 103. Bh5 {[%emt 0:00:50]} Rg2 {[%emt 0:01:40]} 104. Bf3 {[%emt 0:00:29]} Rg7 {[%emt 0:00:06]} 105. Kf2 {[%emt 0:00:22]} Kd2 {[%emt 0:00:08]} 106. Bd5 {[%emt 0:00:25]} Rd7 {[%emt 0:00:15]} 107. Bb3 {[%emt 0:00:30]} Rd8 {[%emt 0:00:10]} 108. Be6 {[%emt 0:00:49]} Rd6 {[%emt 0:00:06]} 109. Bb3 {[%emt 0:00:22]} Kc3 {[%emt 0:00:31]} 110. Bg8 {[%emt 0:00:25]} Kd4 {[%emt 0:00:31]} 111. Kf3 {[%emt 0:00:15]} Rd8 {[%emt 0:01:50]} 112. Bb3 {[%emt 0:00:20]} Rf8+ {[%emt 0:00:38]} 113. Ke2 {[%emt 0:00:13]} Rf6 {[%emt 0:01:04]} 114. Bg8 {[%emt 0:00:15]} Rh6 {[%emt 0:00:18]} 115. Kf3 {[%emt 0:00:17]} Ke5 {[%emt 0:00:31]} 116. Bc4 {[%emt 0:00:27]} Rh8 {[%emt 0:00:58]} 117. Bb5 {[%emt 0:00:22]} Rf8+ {[%emt 0:00:38]} 118. Ke3 {[%emt 0:00:14]} Rb8 {[%emt 0:00:06]} 119. Bc4 {[%emt 0:00:14]} Ra8 {[%emt 0:00:18]} 120. Kd3 {[%emt 0:00:27]} Ra3+ {[%emt 0:00:05]} 121. Kc2 {[%emt 0:00:45]} Kd4 {[%emt 0:00:04]} 122. Bb3 {[%emt 0:00:06]} Ra7 {[%emt 0:00:38]} 123. Be6 {[%emt 0:00:13]} Rg7 {[%emt 0:00:20]} 124. Kb3 {[%emt 0:00:13]} Rg3+ {[%emt 0:01:37]} 125. Kc2 {[%emt 0:00:11]} Rc3+ {[%emt 0:00:15]} 126. Kd2 {[%emt 0:00:13]} Rc6 {[%emt 0:00:04]} 127. Bd7 {[%emt 0:00:19]} Rd6 {[%emt 0:00:05]} 128. Bg4 {[%emt 0:00:14]} Ra6 {[%emt 0:00:25]} 129. Kc2 {[%emt 0:00:11]} Ra7 {[%emt 0:00:17]} 130. Bf5 {[%emt 0:00:10]} Re7 {[%emt 0:00:14]} 1/2-1/2

[Event "USA-ch Women 2024"]
[Site "Saint Louis"]
[Date "2024.10.19"]
[Round "8.3"]
[White "Paikidze, Nazi"]
[Black "Cervantes Landeiro, Thalia"]
[Result "1/2-1/2"]
[ECO "D30"]
[WhiteElo "2314"]
[BlackElo "2302"]
[Annotator "RC"]
[PlyCount "127"]
[EventDate "2024.10.09"]
[EventType "tourn"]
[EventCountry "USA"]
[SourceTitle "playchess.com"]
[Source "ChessBase"]
[SourceQuality "1"]
[TimeControl "40/5400+30:1800+30"]

1. Nf3 {[%emt 0:00:04]} d5 {[%emt 0:00:08]} 2. d4 {[%emt 0:00:09]} e6 {[%emt 0:00:10]} 3. c4 {[%emt 0:00:29]} c5 {[%emt 0:00:09]} 4. cxd5 {[%emt 0:00:13]} exd5 {[%emt 0:00:08]} 5. g3 {[%emt 0:00:07]} Nc6 {[%emt 0:00:16]} 6. Bg2 {[%emt 0:00:12]} Nf6 {[%emt 0:00:11]} 7. O-O {[%emt 0:00:20]} Be7 {[%emt 0:00:15]} 8. dxc5 {[%emt 0:00:10]} Bxc5 {[%emt 0:00:16]} 9. a3 {[%emt 0:00:04]} O-O {[%emt 0:00:55]} 10. b4 {[%emt 0:00:05]} Be7 {[%emt 0:00:24]} 11. Bb2 {[%emt 0:03:14]} Ne4 {[%emt 0:24:26]} 12. Nbd2 {[%emt 0:07:48]} Bf6 {[%emt 0:00:00]} 13. Bxf6 {[%emt 0:02:45]} Qxf6 {[%emt 0:10:51]} 14. Nxe4 {[%emt 0:29:19]} dxe4 {[%emt 0:00:00]} 15. Nd2 {[%emt 0:00:34]} e3 {[%emt 0:00:00]} 16. Ne4 {[%emt 0:00:25]} exf2+ {[%emt 0:00:00]} 17. Rxf2 {[%emt 0:00:04]} Qe5 {[%emt 0:04:18]} 18. Rc1 {[%emt 0:06:41]} Be6 {[%emt 0:10:28]} 19. Qd2 {[%emt 0:15:32]} Rad8 {[%emt 0:01:46]} 20. Qf4 {[%emt 0:10:15]} Qxf4 {[%emt 0:05:42]} 21. gxf4 {[%emt 0:03:43]} Nd4 {[%emt 0:03:54]} 22. Ng3 {[%emt 0:08:07]} b6 {[%emt 0:01:47]} 23. f5 {[%emt 0:06:55]} Bd5 {[%emt 0:13:16]} 24. e3 {[%emt 0:01:09]} Bxg2 {[%emt 0:01:51]} 25. Kxg2 {[%emt 0:00:00]} Nb5 {[%emt 0:00:17]} 26. a4 {[%emt 0:00:00]} Nd6 {[%emt 0:00:38]} 27. Rd2 {[%emt 0:00:00]} f6 {[%emt 0:05:27]} 28. Rcd1 {[%emt 0:00:00]} Nf7 {[%emt 0:00:00]} 29. Rd7 {[%emt 0:00:00]} a5 {[%emt 0:02:31]} 30. bxa5 {[%emt 0:00:00]} bxa5 {[%emt 0:01:21]} 31. Nh5 {[%emt 0:01:08]} Rfe8 {[%emt 0:00:45]} 32. Nf4 {[%emt 0:07:34]} Rxd7 {[%emt 0:02:30]} 33. Rxd7 {[%emt 0:01:40]} Nh6 {[%emt 0:07:04]} 34. Ra7 {[%emt 0:00:00]} Nxf5 {[%emt 0:00:00]} 35. Rxa5 {[%emt 0:00:00]} Nxe3+ {[%emt 0:00:48]} 36. Kf3 {[%emt 0:01:53]} Nc4 {[%emt 0:00:00]} 37. Ra7 {[%emt 0:00:00]} Re5 {[%emt 0:01:03]} 38. Ra8+ {[%emt 0:00:00]} Kf7 39. Ra7+ {[%emt 0:02:49]} Re7 {[%emt 0:00:45]} 40. Rxe7+ {[%emt 0:00:00]} Kxe7 {[%emt 0:00:44]} 41. Ke4 {[%emt 0:00:00]} g5 42. Nd5+ {[%emt 0:02:55]} Ke6 43. Nc7+ {[%emt 0:09:07]} Kd7 {[%emt 0:00:22]} 44. Nd5 {[%emt 0:01:39]} Ke6 {[%emt 0:21:02]} 45. Nc7+ {[%emt 0:06:06]} Kd6 {[%emt 0:00:45]} 46. Ne8+ {[%emt 0:00:37]} Ke7 {[%emt 0:01:23]} 47. Ng7 {[%emt 0:01:15]} Kf7 {[%emt 0:02:32]} 48. Nf5 {[%emt 0:01:41]} h5 {[%emt 0:00:28]} 49. Kd4 {[%emt 0:00:39]} Na5 {[%emt 0:05:31]} 50. Kc5 {[%emt 0:02:19]} Ke6 {[%emt 0:03:02]} 51. Ng7+ {[%emt 0:00:00]} Ke5 {[%emt 0:00:22]} 52. Nxh5 {[%emt 0:00:00]} f5 {[%emt 0:02:02]} 53. Kb5 {[%emt 0:00:00]} Nb7 {[%emt 0:00:00]} 54. a5 {[%emt 0:00:00]} Nxa5 {[%emt 0:00:00]} 55. Kxa5 {[%emt 0:00:39]} f4 {[%emt 0:01:38]} 56. Kb4 {[%emt 0:01:23]} Kf5 {[%emt 0:01:14]} 57. Kc3 {[%emt 0:00:00]} Kg4 {[%emt 0:07:49]} 58. Nf6+ {[%emt 0:00:00]} Kf3 {[%emt 0:01:58]} 59. Kd3 {[%emt 0:01:12]} Kg2 {[%emt 0:00:38]} 60. Ke4 {[%emt 0:00:16]} Kxh2 {[%emt 0:00:00]} 61. Kf5 {[%emt 0:00:05]} f3 {[%emt 0:00:00]} 62. Kxg5 {[%emt 0:00:13]} f2 {[%emt 0:00:00]} 63. Ng4+ {[%emt 0:00:03]} Kg3 {[%emt 0:00:00]} 64. Nxf2 {[%emt 0:00:03]} 1/2-1/2

[Event "USA-ch Women 2024"]
[Site "Saint Louis"]
[Date "2024.10.19"]
[Round "8.4"]
[White "Tokhirjonova, Gulrukhbegim"]
[Black "Yu, Jennifer"]
[Result "1/2-1/2"]
[ECO "A11"]
[WhiteElo "2374"]
[BlackElo "2267"]
[Annotator "TA"]
[PlyCount "120"]
[EventDate "2024.10.09"]
[EventType "tourn"]
[EventCountry "USA"]
[SourceTitle "playchess.com"]
[Source "ChessBase"]
[SourceQuality "1"]
[TimeControl "40/5400+30:1800+30"]

{[%evp 9,120,28,26,20,24,12,11,0,5,2,13,-7,0,0,0,0,0,-6,-14,-49,-53,-42,-50,-47,-25,-43,-31,-38,-8,-15,2,0,0,0,0,0,0,0,2,3,5,6,7,0,17,0,0,0,0,0,3,0,3,1,8,5,21,28,31,37,31,0,0,0,0,0,0,0,0,0,0,0,0,0,0,0,0,0,0,0,0,0,0,0,0,0,0,0,0,0,0,0,0,0,0,0,0,0,0,0,0,0,0,0,0,0,0,0,0,0,0,0,0]} 1. Nf3 {[%emt 0:00:09]} d5 {[%emt 0:00:33]} 2. c4 {[%emt 0:00:13]} c6 {[%emt 0:00:24]} 3. e3 {[%emt 0:00:22]} Nf6 {[%emt 0:00:20]} 4. Qc2 {[%emt 0:00:25]} g6 {[%emt 0:03:37]} 5. b3 {[%emt 0:00:31]} Bg7 {[%emt 0:00:05]} 6. Bb2 {[%emt 0:00:08]} O-O {[%emt 0:00:11]} 7. h3 {[%emt 0:00:44]} b6 {[%emt 0:02:00]} 8. Be2 {[%emt 0:02:26]} Bb7 {[%emt 0:01:04]} 9. d4 {[%emt 0:03:40]} Nbd7 {[%emt 0:01:42]} 10. Nc3 {[%emt 0:03:23]} e6 {[%emt 0:07:39]} 11. O-O {[%emt 0:00:46]} c5 {[%emt 0:01:37]} 12. Rfd1 {[%emt 0:01:52]} cxd4 {[%emt 0:10:18]} 13. exd4 {[%emt 0:00:49]} Ne4 {[%emt 0:03:17]} 14. Bd3 {[%emt 0:07:31]} Nxc3 {[%emt 0:01:51]} 15. Qxc3 {[%emt 0:03:05]} dxc4 {[%emt 0:07:32]} 16. Bxc4 {[%emt 0:00:14]} a6 {[%emt 0:07:45]} (16... Qf6 $5) 17. a4 {[%emt 0:00:40]} Nf6 {[%emt 0:00:59]} 18. Ne5 {[%emt 0:03:52]} Ne4 {[%emt 0:08:06]} 19. Qe3 {[%emt 0:06:15]} Nd6 {[%emt 0:09:36]} 20. d5 {[%emt 0:29:07]} Nf5 $1 {[%emt 0:05:58][%csl LRd5,LRe3]} 21. Qd2 {[%emt 0:01:22]} exd5 {[%emt 0:10:18]} 22. Bxd5 {[%emt 0:00:26]} Bxd5 {[%emt 0:00:38]} 23. Qxd5 {[%emt 0:00:02]} Qxd5 {[%emt 0:00:06]} 24. Rxd5 {[%emt 0:00:10]} Rac8 {[%emt 0:00:04]} 25. Rad1 {[%emt 0:01:23]} Rfe8 {[%emt 0:02:03]} 26. Ba1 {[%emt 0:01:51]} h5 {[%emt 0:02:21]} 27. Nc4 {[%emt 0:04:59]} Bxa1 {[%emt 0:00:54]} 28. Rxa1 {[%emt 0:00:02]} Re6 {[%emt 0:03:55]} 29. Rad1 {[%emt 0:00:58]} Kg7 {[%emt 0:00:07]} 30. Kf1 {[%emt 0:02:41]} Rcc6 {[%emt 0:01:34]} 31. g4 {[%emt 0:03:17]} hxg4 {[%emt 0:01:40]} 32. hxg4 {[%emt 0:00:02]} Ne7 {[%emt 0:02:39]} 33. Rd7 {[%emt 0:01:27]} b5 {[%emt 0:04:08]} 34. axb5 {[%emt 0:00:11]} axb5 {[%emt 0:00:04]} 35. Ne3 {[%emt 0:00:11]} Rc3 {[%emt 0:00:53] The position is equal.} 36. Rb7 {[%emt 0:02:31]} Rxb3 {[%emt 0:00:27]} 37. Rdd7 {[%emt 0:00:09]} Kf8 {[%emt 0:00:44]} 38. g5 {[%emt 0:03:51]} Rb4 {[%emt 0:01:25] Prevents Ng4} 39. Kg2 {[%emt 0:01:10][%cal Od7e7]} Rbe4 {[%emt 0:00:25]} 40. Rxb5 {[%emt 0:01:51]} R4e5 {[%emt 0:00:19]} 41. Rdb7 {[%emt 0:31:22]} Rxb5 {[%emt 0:05:00]} 42. Rxb5 $11 {[%emt 0:00:00][%mdl 4096] Endgame. KRN-KRN} f6 {[%emt 0:00:35]} 43. gxf6 {[%emt 0:00:00]} Rxf6 {[%emt 0:00:06]} 44. Kg3 {[%emt 0:00:00]} Kg7 {[%emt 0:01:30]} 45. Ng4 {[%emt 0:00:00]} Rf7 {[%emt 0:03:29]} 46. Rb6 {[%emt 0:00:00]} Nf5+ {[%emt 0:00:38]} 47. Kg2 {[%emt 0:00:00]} Nh4+ {[%emt 0:01:08]} 48. Kh3 {[%emt 0:00:00]} Nf3 {[%emt 0:02:28]} 49. Ra6 {[%emt 0:00:00]} Ng5+ {[%emt 0:01:38]} 50. Kg2 {[%emt 0:00:00]} Ne4 {[%emt 0:01:23]} 51. f3 {[%emt 0:00:00][%cal Bf2f3,Bf3f4][%mdl 32]} Nc5 {[%emt 0:02:03]} 52. Rd6 {[%emt 0:00:00]} Nd7 {[%emt 0:00:52]} 53. Rc6 {[%emt 0:00:00]} Nf6 {[%emt 0:02:41]} 54. Ne5 {[%emt 0:00:00]} Re7 {[%emt 0:00:01]} 55. f4 {[%emt 0:00:00]} g5 {[%emt 0:01:02]} 56. fxg5 {[%emt 0:00:00]} Rxe5 {[%emt 0:00:04]} 57. gxf6+ {[%emt 0:00:00]} Kf7 {[%emt 0:00:02]} 58. Kg3 {[%emt 0:00:00]} Rf5 {[%emt 0:00:05]} 59. Kg4 {[%emt 0:00:00]} Rxf6 {[%emt 0:00:03]} 60. Rxf6+ {[%emt 0:00:00]} Kxf6 {[%emt 0:00:02] Weighted Error Value: White=0.04 (flawless) /Black=0.03 (flawless) .  Inaccurate:     	White=2     	Black=1      OK:         	White=14    	Black=26     Strong:       	---       	Black=1} 1/2-1/2